{"text_format":"1","workbook":"xlsx","n_sheets":3,"sheets":["Fattura","Crediti e licenza","Appoggio"],"not_rendered":{"charts":0,"images":2,"macros":1,"external_links":0,"defined_names":101,"comments":1,"pivot_tables":0},"unopened":[],"bounds":{"document_bytes":16777216,"sheet_cells":100000,"rows_first":2000,"rows_last":500,"rows_between":2000,"halvings":0,"cell_chars":16384,"cell_head_chars":4096},"cells_cut":0,"cells_raw":0,"read":"whole","date_system":"1900"}

{"sheet":"Fattura","index":0,"n_rows":78,"n_cols":23,"rows_kept":78,"cut":false,"hidden":false,"merged":[[0,0,0,6],[23,1,23,2],[16,1,16,2],[17,1,17,2],[19,1,19,2],[20,1,20,2],[15,1,15,2],[6,0,6,2],[8,1,8,2],[9,1,9,2],[10,1,10,2],[4,0,4,6],[7,1,7,2],[11,1,11,2],[1,0,1,6],[66,4,66,5],[58,4,58,5],[26,5,26,8],[63,7,63,8],[28,0,28,8],[64,7,64,8],[59,4,59,5],[60,4,60,5],[61,4,61,5],[62,4,62,5],[26,1,26,2],[63,4,63,5],[64,4,64,5],[65,4,65,5],[25,1,25,2],[29,13,29,14],[74,7,78,9],[73,4,73,5],[75,4,75,5],[76,4,76,5],[77,4,77,5],[74,4,74,5],[71,4,71,5],[72,4,72,5],[69,4,69,5],[70,4,70,5],[29,10,29,11],[67,4,67,5],[68,4,68,5],[59,9,59,10],[1,7,1,8],[24,4,24,8],[24,1,24,2],[22,5,22,8],[22,1,22,2],[21,5,21,6],[18,5,18,7],[19,5,19,8],[20,5,20,8],[3,0,3,8],[6,7,6,8],[16,5,16,8],[15,5,15,8],[21,7,21,8],[12,1,12,2],[29,19,29,22],[28,19,28,22],[6,4,6,6],[7,4,13,8],[25,5,25,8],[17,5,17,8],[15,10,15,11],[23,5,23,8],[29,16,29,17],[28,10,28,17]]}
["XML Fattura elettronica da MS Excel™",null,null,null,null,null,null,null,"Versione 3.2 "]
["By Marco Gualmini © 2019 - 2022",null,null,null,null,null,null,{"$f":"HYPERLINK(\"http://www.marcogualmini.it/contatti.htm\",\"Contatta l’autore \")","v":"Contatta l’autore "}]
[]
["La presente applicazione è utilizzabile per generare file XML compatibili con il formato di fattura elettronica tra privati versione FPR12. L'applicazione è concepita a fini di studio e nessuna responsabilità è imputabile all'autore per errori diretti e/o indiretti causati dall'uso del presente software. Tutti i dati da immettere sono elaborati esclusivamente dal computer dell'utente, al quale si consiglia di controllare sempre i risultati dell'inserimento e dell'elaborazione."]
["Per utilizzare l'applicazione è necessario abilitare l'esecuzione delle macro!"]
[]
["Dati generali documento",null,null,null,"Causale",null,null,{"$f":"\"Caratteri digitabili: \"&200-LEN(Causale)&\" \"","v":"Caratteri digitabili: 200 "}]
["Tipo documento",null,null,null,""]
["Numero",""]
["Data",null,null,{"$f":"IF(Data_documento,IF(TODAY()=Data_documento,\"\",\"Data diversa da oggi\"),\"\")","v":""}]
["Progressivo di invio",""]
["Divisa","EUR"]
["Art. 73","NO",null,{"$f":"IF(Art73_applicare=\"SI\",\"Art 73!\",\"\")","v":""}]
["Trasmittente / Emittente","","Cedente",{"$f":"IF(test_cf(ID_trasmittente),\"\",\"Valore errato\")","v":""}]
[]
["Cedente",null,null,null,"Cliente",null,null,null,null,null,"IscrizioneREA Cedente"]
["Denominazione",null,null,null,"Cognome",null,null,null,null,null,"Provincia"]
["Nome",null,null,null,"Nome",null,null,null,null,null,"Numero iscrizione"]
["Indirizzo / n. civico",null,null,null,"Indirizzo / n. civico",null,null,null,null,null,"Capitale sociale"]
["Cap",null,null,null,"Cap",null,null,null,null,null,"Socio unico"]
["Comune",null,null,null,"Comune",null,null,null,null,null,"In liquidazione","NO"]
["Provincia / Nazione","","",null,"Provincia / Nazione","",null,"IT"]
["Codice Fiscale","",null,{"$f":"IF(test_cf(Cedente_cf),\"\",\"Valore errato\")","v":""},"Codice Fiscale","",null,null,null,{"$f":"IF(Cliente_nazione=\"IT\",IF(test_cf(Cliente_cf),\"\",\"Valore errato\"),\"\")","v":""}]
["Partita Iva",null,null,{"$f":"IF(test_piva_it(Cedente_pi),\"\",\"Valore errato\")","v":""},"Partita Iva",null,null,null,null,{"$f":"IF(test_piva_it(Cliente_pi),\"\",\"Valore errato\")","v":""}]
["Regime fiscale",null,null,null,"Dati fattura elettronica"]
["Telefono","",null,null,"Codice destinatario",""]
["Email","",null,null,"PEC",""]
[]
["Compilare la tabella dei beni o prestazioni specificando l'aliquota iva oppure la natura di non imposizione. In quest'ultimo caso scrivere anche la norma di riferimento.\nPer applicare sconti, scrivere il valore percentuale con segno negativo nell'apposita colonna. Un valore positivo indica maggiorazione.",null,null,null,null,null,null,null,null,null,"Si possono inserire riferimenti a DDT, ordini acquisti e fatture collegate per ogni riga. Se viene inserita una sola voce nella prima linea il documento si riferirà a tutta la fattura. Se sono indicati più riferimenti, questi varranno per la voce bene/servizio della riga in cui sono presenti e le seguenti fino al prossimo riferimento o fine elenco.",null,null,null,null,null,null,null,null,"Inserire una riga relativa ad altri dati per ogni voce che lo richiede. Non si applica l'estensione automatica alle righe seguenti."]
["Descrizione beni/prestazioni",null,null,null,null,null,null,null,null,null,"Documenti di trasporto (2.1.8)",null,null,"Dati ordine acquisto (2.1.2)",null,null,"Dati fatture collegate (2.1.6)",null,null,"Altri dati gestionali (2.2.1.16)"]
["Codice","Descrizione","Quantità","Unità misura","Importo","Sconto / maggioraz.","Totale","Aliquota IVA","Norma",null,"Numero","Data",null,"Numero","Data",null,"Numero","Data",null,"Tipo dato","Testo","Numero","Data"]
[null,null,null,null,null,null,{"$f":"IF(C32,C32,1)*E32*(1+F32)","v":0},null,null,1]
[null,null,null,null,null,null,{"$f":"IF(C33,C33,1)*E33*(1+F33)","v":0},null,null,2]
[null,null,null,null,null,null,{"$f":"IF(C34,C34,1)*E34*(1+F34)","v":0},null,null,3]
[null,null,null,null,null,null,0,null,null,4]
[null,null,null,null,null,null,0,null,null,5]
[null,null,null,null,null,null,0,null,null,6]
[null,null,null,null,null,null,0,null,null,7]
[null,null,null,null,null,null,0,null,null,8]
[null,null,null,null,null,null,0,null,null,9]
[null,null,null,null,null,null,0,null,null,10]
[null,null,null,null,null,null,0,null,null,11]
[null,null,null,null,null,null,0,null,null,12]
[null,null,null,null,null,null,0,null,null,13]
[null,null,null,null,null,null,0,null,null,14]
[null,null,null,null,null,null,0,null,null,15]
[null,null,null,null,null,null,0,null,null,16]
[null,null,null,null,null,null,0,null,null,17]
[null,null,null,null,null,null,0,null,null,18]
[null,null,null,null,null,null,0,null,null,19]
[null,null,null,null,null,null,0,null,null,20]
[null,null,null,null,null,null,0,null,null,21]
[null,null,null,null,null,null,0,null,null,22]
[null,null,null,null,null,null,0,null,null,23]
[null,null,null,null,null,null,0,null,null,24]
[null,null,null,null,null,null,0,null,null,25]
[]
[]
["Totali",null,null,"Trasportatore",null,null,null,"Imposta di bollo virtuale"]
["Imponibile",{"$f":"SUM(IF(ISNUMBER(H32:H56),G32:G56,0))","v":0},null,"Trasportatore",null,null,null,"Applicare ?","NO",{"$f":"IF(Bollo_applicare=\"SI\",IF(OR(Tot_non_imponibile<77.47,Tot_iva>0),\"Bollo dovuto?\",\"\"),\"\")","v":""}]
["Iva",{"$f":"SUM(IF(ISNUMBER(H32:H56),G32:G56*H32:H56,0))","v":0},null,"Nazione",null,null,null,"Importo",2]
["Non imponibili",{"$f":"SUM(IF(NOT(ISNUMBER(H32:H56)),G32:G56,0))","v":0},null,"P.Iva Trasportatore",null,null,{"$f":"IF(test_piva_it(Trasportatore_pi),\"\",\"Valore errato\")","v":""}]
["Totale documento",{"$f":"SUM(B60:B62)","v":0},{"$f":"IF(SUM(G32:G56)=B60+B62,\"\",\"Incongruenza\")","v":""},"C.F. Trasportatore",null,null,{"$f":"IF(test_cf(Trasportatore_cf),\"\",\"Valore errato\")","v":""}]
["Esigibilità IVA","Immediata",null,"Mezzo di trasporto",null,null,null,"Nome file XML generato"]
[null,null,null,"Causale",null,null,null,{"$f":"Cedente_nazione&ID_trasmittente&\"_\"&RIGHT(Progressivo_invio,5)","v":"_"}]
[null,null,null,"Numero colli"]
["Pagamento","TP02 Pagamento completo",null,"Descrizione"]
["Modalità",null,null,"Unità di peso"]
["Importo pagamento",{"$f":"Importo_totale_documento","v":0},null,"Peso lordo"]
["Banca",null,null,"Peso netto"]
["IBAN",null,null,"Data e ora ritiro"]
["Beneficiario",null,null,"Indirizzo di resa"]
["Scadenza",null,null,"Civico"]
[null,null,null,"CAP"]
[null,null,null,"Comune"]
[null,null,null,"Provincia",""]
[null,null,null,"Nazione"]
[null,null,null,"Data e ora consegna"]

{"sheet":"Crediti e licenza","index":1,"n_rows":60,"n_cols":3,"rows_kept":60,"cut":false,"hidden":false,"merged":[[1,1,1,2],[3,1,3,2]]}
[]
[null,"Applicazione sviluppata da Marco Gualmini"]
[]
[null,"Consulente tecnico informatico con particolare competenza in Informatica Giuridica, ovvero l'informatica al servizio della giustizia. Ciò implica anche competenze di Diritto, Procedure Processuali, della documento digitale ed una formazione continua sulle novità normative.\n\nMi rivolgo in modo particolare ad Avvocati e Studi Legali per:\n✔ Processo Civile Telematico e Processo Amministrativo Telematico: Supporto e formazione sui servizi del PCT quali la Consolle Avvocato, la Posta Certificata, le notifiche in proprio, a mezzo PEC la Firma Digitale. Fattura elettronica.\n✔Affiancamento durante primi depositi telematici per supervisione e tutoraggio pratico, con attenzione all'aspetto procedurale e di prassi anche sull'autentica della conversione dei documenti cartacei/digitali e viceversa.\n✔ Consulenza Tecnica Forense in informatica e telecomunicazioni: concorrenza sleale, diritto d'autore, sostituzione d'identità, cyberbullismo ecc.\n\nInoltre, più classicamente, offro consulenza informatica in networking e telecomunicazioni, tecnologie del Web e motori di ricerca. Competenza su piattaforme MS Windows, Apple MAC OsX, GNU/Linux\n"]
[]
[null,"Web:","http://www.marcogualmini.it/"]
[]
[null,"Email","info@marcogualmini.it"]
[]
[null,"Blog sul processo telematico","http://gualmini-pct.blogspot.com/"]
[]
[null,"Linkedin","https://it.linkedin.com/in/marco-gualmini-85183a19/it"]
[]
[null,"Mailing list sul PCT","http://www.marcogualmini.it/mlpt.htm"]
[]
[]
[null,"LICENZA"]
[null,"Applicazione distribuita con licenza Creative Commons Attribution-ShareAlike 4.0 International (CC BY-SA 4.0)  "]
[null,"Si può:"]
[null,"Condivisione - si può copiare e ridistribuire il materiale con ogni mezzo o formato"]
[null,"Adattamento - si può modificare, trasformare l'opera e realizzarci nuovo materiale"]
[null,"Alle seguenti condizioni:"]
[null,"Attribuzione - occorre citare l'autore originale, anche mediante link, citando le eventuali modifiche"]
[null,"Condividi allo stesso modo - ogni modifica o opera derivate deve essere ridistribuita con la stessa licenza"]
[null,"https://creativecommons.org/licenses/by-sa/3.0/it/legalcode"]
[]
[]
[]
[null,"Scarica la versione più recente su:","http://gualmini-pct.blogspot.com/2019/01/strumenti-per-la-fatturazione.html"]
[]
[null,"Sviluppo"]
[null,"V 0.1 - febbraio 2019","Inizio, derivazione da fattura per professionisti"]
[null,"V 0.5 - febbraio 2019","completamento funzioni principali"]
[null,"V 0.6 - marzo 2019","Bug fix"]
[null,"V 0.7 - marzo 2019","Bug fix"]
[null,"V 0.8 - marzo 2019","Eliminati documenti collergati e corretto inserimento DDT"]
[null,"V 0.9 - marzo 2019","Fix calcolo iva nel riepilogo"]
[null,"V 1.0 - febbraio 2020","Importazione anagrafiche"]
[null,"V 1.1 - febbraio 2020","Inserimento dati REA. Cambio routine esportazione per forzatura  UTF-8"]
[null,"V 1.2 - febbraio 2020","Fix importazione anagrafica cliente, mostra path file esportato in cella stato"]
[null,"V 1.3 - febbraio 2020","Doppia routine di salvataggio per Windows e Mac"]
[null,"V 1.4 - aprile 2020","Supporto tracciato 1.2.2"]
[null,"V 1.5 - settembre 2020","Supporto oltre due decimali in importi beni e servizi"]
[null,"V 1.6 - ottobre 2020","Possibilità di specificare l'ID fiscale del trasmittente"]
[null,"V 1.7 - ottobre 2020","Importazione dati da file XML, esportazione anagrafica cliente"]
[null,"V 1.8 - ottobre 2020","Fix bug importazione XML, calcolo subtotali in tempo reale con formule a matrice"]
[null,"V 1.9 - dicembre 2020","Campo SoggettoTrasmittente in XML solo se valorizzato TZ"]
[null,"V 2.0 - febbraio 2021","Controllo nature IVA obsolete, fix vari"]
[null,"V 2.1 - aprile 2021","Aggiunta tabella dati ordine acquisto. Possibilità di creare copie dei fogli"]
[null,"V 2.2 - aprile 2021","Rimosso errore bloccante in caso di mancanza norma esenzione IVA. Fix esportazione REA"]
[null,"V 2.3 - maggio 2021","Rimossi controlli PIVA e CF cedente per nazione diversa da IT per consentire autofattura"]
[null,"V 2.4 - settembre 2021","Fix problema arrotondamento sconto/maggiorazione, trim numero doc e progressivo invio"]
[null,"V 2.5 - ottobre 2021","Fix errore nazione cedente come cessionario, escape carattere Euro"]
[null,"V 2.6 - ottobre 2021","Aggiunta tabella Fatture collegate"]
[null,"V 2.7 - novembre 2021","Fix accetta documenti collegati anche con solo numero o sola data, quantità non in xml se vuoto"]
[null,"V 2.8 - gennaio 2022","Tabella altri dati gestionali, possibilità  di esportare senza provincia. Verifica bollo."]
[null,"V 2.9 - gennaio 2022","Verifica presenza norma esclusione"]
[null,"V 3.0 - febbraio 2022","Fix REA socio unico non obligatorio"]
[null,"V 3.1 - febbraio 2022","Fix dati riepilogativi"]
[null,"V 3.2 - maggio 2022","Verifica presenza CF o PI cliente"]

{"sheet":"Appoggio","index":2,"n_rows":104,"n_cols":1,"rows_kept":104,"cut":false,"hidden":false,"merged":[]}
[]
["RF01 Ordinario"]
["RF02 Contribuenti minimi (art.1, c.96-117, L. 244/07)"]
["RF03 Nuove iniziative produttive (art.13, L. 388/00) "]
["RF04 Agricoltura e attività connesse e pesca (artt.34 e 34-bis, DPR 633/72)"]
["RF05 Vendita sali e tabacchi (art.74, c.1, DPR. 633/72)"]
["RF06 Commercio fiammiferi (art.74, c.1, DPR 633/72)"]
["RF07 Editoria (art.74, c.1, DPR 633/72)"]
["RF08 Gestione servizi telefonia pubblica (art.74, c.1, DPR 633/72)"]
["RF09 Rivendita documenti di trasporto pubblico e di sosta (art.74, c.1, DPR 633/72)"]
["RF10 Intrattenimenti, giochi e altre attività di cui alla tariffa allegata al DPR 640/72 (art.74, c.6, DPR 633/72)"]
["RF11 Agenzie viaggi e turismo (art.74-ter, DPR 633/72) "]
["RF12 Agriturismo (art.5, c.2, L. 413/91)"]
["RF13 Vendite a domicilio (art.25-bis, c.6, DPR 600/73)"]
["RF14 Rivendita beni usati, oggetti d’arte, d’antiquariato o da collezione (art.36, DL 41/95)"]
["RF15 Agenzie di vendite all’asta di oggetti d’arte, antiquariato o da collezione (art.40-bis, DL 41/95)"]
["RF16 IVA per cassa P.A. (art.6, c.5, DPR 633/72)"]
["RF17 IVA per cassa (art. 32-bis, DL 83/2012)"]
["RF18 Altro"]
["RF19 Regime forfettario (art.1, c.54-89, L. 190/2014)"]
[]
[]
["TD01 Fattura"]
["TD02 Acconto/anticipo su fattura"]
["TD03 Acconto / anticipo su parcella"]
["TD04 Nota di credito"]
["TD05 Nota di debito"]
["TD06 Parcella"]
["TD16 Integrazione fattura reverse charge interno"]
["TD17 Integrazione/autofattura per acquisto servizi dall'estero"]
["TD18 Integrazione per acquisto di beni intracomunitari"]
["TD19 Integrazione/autofattura per acquisto di beni ex art.17 c.2 DPR 633/72"]
["TD20 Autofattura"]
["TD21 Autofattura per splafonamento"]
["TD22 estrazione beni da Deposito IVA"]
["TD23 Estrazione beni da Deposito IVA con versamento dell'IVA"]
["TD24 Fattura differita di cui all'art. 21, comma 4, lett. a)"]
["TD25 Fattura differita di cui all'art. 21, comma 4, terzo periodo lett. b)"]
["TD26 Cessione di beni ammortizzabili e per passaggi interni (ex art.36 DPR 633/72)"]
["TD27 Fattura per autoconsumo o per cessioni gratuite senza rivalsa"]
[]
[0.22]
[0.1]
[0.05]
[0.04]
["N1 Escluse Art. 15"]
["N2 Non soggette (obsoleto da ottobre 2020)"]
["N2.1 Non soggette ad IVA ai sensi degli artt. da 7 a 7-septies del DPR 633/72"]
["N2.2 Non soggette - altri casi"]
["N3 Non imponibili (obsoleto da ottobre 2020)"]
["N3.1 Non imponibili – esportazioni"]
["N3.2 Non imponibili - cessioni intracomunitarie"]
["N3.3 Non imponibili - cessioni verso San Marino"]
["N3.4 Non imponibili - operazioni assimilate alle cessioni all'esportazione"]
["N3.5 Non imponibili - a seguito di dichiarazioni d'intento"]
["N3.6 Non imponibili - altre operazioni che non concorrono alla formazione del plafond"]
["N4 Esenti"]
["N5 Reg. margine"]
["N6 Inv. contabile (obsoleto da ottobre 2020)"]
["N6.1 Inversione contabile - cessione di rottami e altri materiali di recupero"]
["N6.2 Inversione contabile - cessione di oro e argento puro"]
["N6.3 Inversione contabile - subappalto nel settore edile"]
["N6.4 Inversione contabile - cessione di fabbricati"]
["N6.5 Inversione contabile - cessione di telefoni cellulari"]
["N6.6 Inversione contabile - cessione di prodotti elettronici"]
["N6.7 Inversione contabile - prestazioni comparto edile e settori connessi"]
["N6.8 Inversione contabile - operazioni settore energetico"]
["N6.9 Inversione contabile - altri casi"]
["N7 IVA assolta in altro stato UE (vendite a distanza ex art. 40 c. 3 e 4 e art. 41 c. 1 lett. b, DL 331/93; prestazione di servizi di telecomunicazioni, tele-radiodiffusione ed elettronici ex art. 7-sexies lett. f, g, art. 74-sexies DPR 633/72)"]
[]
[]
["TP01 Pagamento a rate"]
["TP02 Pagamento completo"]
["TP03 Anticipo su fattura"]
[]
[]
["MP01 contanti"]
["MP02 assegno"]
["MP03 assegno circolare"]
["MP04 contanti presso Tesoreria"]
["MP05 bonifico"]
["MP06 vaglia cambiario"]
["MP07 bollettino bancario"]
["MP08 carta di pagamento"]
["MP09 RID"]
["MP10 RID utenze"]
["MP11 RID veloce"]
["MP12 RIBA"]
["MP13 MAV"]
["MP14 quietanza erario"]
["MP15 giroconto su conti di contabilità speciale"]
["MP16 domiciliazione bancaria"]
["MP17 domiciliazione postale"]
["MP18 bollettino di c/c postale"]
["MP19 SEPA Direct Debit"]
["MP20 SEPA Direct Debit CORE"]
["MP21 SEPA Direct Debit B2B"]
["MP22  Trattenuta su somme già riscosse"]
["MP23 PagoPA"]
[]
[]
["Cedente"]
["Cessionario"]
["Terzo"]